Cogmind - Beta 17 @@@ ROGUE MODE // 2026.07.24 @ 15:13:03 Player: OBLIQUE Result: Destroyed by P-80 Master with Gamma Rifle Performance ------------- Evolutions (9) 4500 Regions Visited (22) 4400 Robots Destroyed (52) 260 Value Destroyed (1338) 1338 Prototype IDs (88) 1760 Alien Tech Used (3) 600 Bonus (11780) 11780 TOTAL SCORE: 24638 Bonus ------- Follower Combat Kills 180 Hunted by Unchained 500 Aligned with FarCom 300 Met Zhirov 300 Met Warlord at Base 500 MAIN.C Attacked Warlord 500 Met Warlord at Research 2000 Destroyed MAIN.C Guards 500 Met MAIN.C 5000 Met Warlord at Command 2000 Cogmind --------- Core Integrity 0/1600 Matter 211/300 Energy 691/700 System Corruption 0% Temperature Cool (0) Movement Core (150) Ox2 Location -1/Command Parts ------- > --- POWER (1) -------- (None) > --- PROPULSION (3) --- (None) > --- UTILITY (19) ----- Experimental Energy Well Enhanced Optical Array Improved Melee Analysis Suite Improved Melee Analysis Suite Improved Melee Analysis Suite Improved Melee Analysis Suite Advanced Target Analyzer Advanced Target Analyzer Advanced Target Analyzer Advanced Target Analyzer Advanced Target Analyzer Experimental Armor Integrity Analyzer Advanced ECM Suite Advanced Hacking Suite Improved System Shield Advanced System Shield > --- WEAPON (2) ------- Vibroblade > --- INVENTORY (5) ---- Phasing Sabre Peak State ------------ > --- POWER ------------ Micro Antimatter Reactor > --- PROPULSION ------- Nuclear Pulse Thruster Nuclear Pulse Thruster Nuclear Pulse Thruster > --- UTILITY ---------- Experimental Energy Well Enhanced Optical Array Improved Melee Analysis Suite Improved Melee Analysis Suite Improved Melee Analysis Suite Improved Melee Analysis Suite Improved Melee Analysis Suite Advanced Target Analyzer Advanced Target Analyzer Advanced Target Analyzer Advanced Target Analyzer Advanced Target Analyzer Experimental Armor Integrity Analyzer Advanced ECM Suite Advanced Hacking Suite Improved System Shield Advanced System Shield Advanced System Shield Advanced Corruption Screen > --- WEAPON ----------- Vibroblade > --- INVENTORY -------- Advanced Heavy Treads Improved Linear Gravjet Linear Accelerator Phasing Sabre [Rating: 148] Favorites ----------- Power Micro Fission Core Engine Light Deuterium Engine Power Core Micro Fission Core Reactor Micro Antimatter Reactor Propulsion Cooled Nuclear Pulse Thruster Treads Advanced Heavy Treads Leg Aluminum Leg Hover Unit Hover Unit Flight Unit Cooled Nuclear Pulse Thruster Utility System Shield Device Advanced Terrain Scanner Storage Small Storage Unit Processor Advanced Terrain Scan Processor Hackware System Shield Protection Centrium Medium Armor Plating Weapon Spear Energy Gun Small Laser Energy Cannon Beam Cannon Ballistic Gun Assault Rifle Ballistic Cannon Light Cannon Launcher Heavy Shock Bomb Launcher Slashing Weapon Vibroblade Piercing Weapon Spear Build | -11 -10 -9 -9 -9 -8 -8 -7 -6 -5 -5 -5 -5 -4 -4 -4 -4 -4 -3 -3 -2 -1 -1 ------- Run | Yrd Mat Mat Min Exi Min Mat Fac Fac Fac Upp Upp Zhi Pro Fac Upp Upp War Pro Res Res Acc Com Slots Evolved 18 | . . 2 . . . 2 2 2 2 . . . . 2 . . . . 2 2 2 . Power . | . . . . . . . . . . . . . . . . . . . . . . . Propulsion 1 | . . . . . . . . . 1 . . . . . . . . . . . . . Utility 17 | . . 2 . . . 2 2 2 1 . . . . 2 . . . . 2 2 2 . Weapon . | . . . . . . . . . . . . . . . . . . . . . . . Parts Attached 128 | 8 10 6 6 . . 4 7 5 6 1 . 7 1 6 2 1 6 . 1 5 9 37 Power 14 | 1 2 . . . . 1 . . 2 . . 1 1 1 . . 1 . . . . 4 Engine 6 | 1 2 . . . . . . . 2 . . . 1 . . . . . . . . . Core 5 | . . . . . . 1 . . . . . . . 1 . . 1 . . . . 2 Reactor 3 | . . . . . . . . . . . . 1 . . . . . . . . . 2 Propulsion 31 | 2 4 2 3 . . 1 2 . 1 . . 3 . . . . . . . . 2 11 Treads 1 | . . . . . . . . . . . . . . . . . . . . . . 1 Leg 6 | 2 4 . . . . . . . . . . . . . . . . . . . . . Wheel . | . . . . . . . . . . . . . . . . . . . . . . . Hover 3 | . . 2 . . . . . . . . . . . . . . . . . . 1 . Flight 21 | . . . 3 . . 1 2 . 1 . . 3 . . . . . . . . 1 10 Utility 67 | 3 1 4 . . . . 5 5 3 1 . 3 . 5 2 1 3 . 1 4 7 19 Device 17 | 2 1 1 . . . . 1 2 . 1 . 1 . 2 . . 2 . . . . 4 Storage 6 | 1 . . . . . . . . 1 . . 1 . 1 . . . . . . 1 1 Processor 28 | . . 1 . . . . 3 1 2 . . . . 2 1 1 . . 1 1 3 12 Hackware 15 | . . 2 . . . . 1 2 . . . 1 . . 1 . . . . 3 3 2 Protection 1 | . . . . . . . . . . . . . . . . . 1 . . . . . Artifact . | . . . . . . . . . . . . . . . . . . . . . . . Weapon 16 | 2 3 . 3 . . 2 . . . . . . . . . . 2 . . 1 . 3 Energy Gun 1 | . . . 1 . . . . . . . . . . . . . . . . . . . Energy Cannon 1 | . 1 . . . . . . . . . . . . . . . . . . . . . Ballistic Gun 4 | 2 . . 2 . . . . . . . . . . . . . . . . . . . Ballistic Cannon 3 | . 1 . . . . . . . . . . . . . . . 1 . . . . 1 Launcher 3 | . 1 . . . . . . . . . . . . . . . . . . . . 2 Special Weapon . | . . . . . . . . . . . . . . . . . . . . . . . Impact Weapon . | . . . . . . . . . . . . . . . . . . . . . . . Slashing Weapon 2 | . . . . . . 1 . . . . . . . . . . . . . 1 . . Piercing Weapon 2 | . . . . . . 1 . . . . . . . . . . 1 . . . . . Special Melee Weapon . | . . . . . . . . . . . . . . . . . . . . . . . Unidentified Prototypes 15 | . . . . . . . . . 1 . . 5 . 1 . . 3 . . 1 . 4 Parts Lost 44 | . 1 . 5 . . . . . . . . 1 1 . . . 1 . . . 8 27 Power 6 | . . . 1 . . . . . . . . 1 . . . . . . . . . 4 Propulsion 19 | . 1 . 3 . . . . . . . . . . . . . . . . . 3 12 Utility 14 | . . . . . . . . . . . . . 1 . . . 1 . . . 5 7 Weapon 5 | . . . 1 . . . . . . . . . . . . . . . . . . 4 Highest Loss Streak 8 | . 1 . 2 . . . . . . . . 1 1 . . . 1 . . . 8 7 To Critical Strikes . | . . . . . . . . . . . . . . . . . . . . . . . Average Backups 6 | . 6 6 7 8 8 7 7 7 7 8 8 8 7 7 8 8 8 8 8 8 7 3 Power . | . . . . . . . . . . . . . . . . . . . . . . . Propulsion 1 | . 1 1 1 2 2 2 2 3 3 3 2 1 1 1 1 1 1 1 1 1 . 1 Utility 3 | . 3 5 6 6 6 3 3 3 3 5 5 5 4 4 5 5 5 5 5 4 3 . Weapon . | . 1 . . . . 1 1 . . . . . . . . . . . . . 1 1 Tool/Special . | . . . . . . . . . . . . . . . . . . . . . . . Unused Backups 22 | . 5 . 2 1 . 3 4 1 2 . . 1 . . . . . . 1 . 1 1 Power . | . . . . . . . . . . . . . . . . . . . . . . . Propulsion 10 | . 3 . 2 . . . 2 1 . . . 1 . . . . . . . . 1 . Utility 6 | . 1 . . 1 . 1 . . 2 . . . . . . . . . 1 . . . Weapon 6 | . 1 . . . . 2 2 . . . . . . . . . . . . . . 1 Tool/Special . | . . . . . . . . . . . . . . . . . . . . . . . Average Slot Usage (%) 89 | . 99 89 75 88 88 80 81 85 88 94 94 93 90 84 93 94 93 89 82 86 92 87 Engine 1 | . 14 11 1 . . . . . 2 5 5 5 2 . . . . . . . . . Core 2 | . . . . . . 1 . . . . . . . 4 5 5 5 5 4 4 4 2 Leg 2 | . 27 4 . . . . . . . . . . . . . . . . . . . . Flight 12 | . . . 12 22 22 18 15 13 17 17 17 17 17 15 15 15 15 15 14 13 11 9 Device 14 | . 14 6 . . . 17 14 13 18 17 17 16 17 21 21 21 20 21 19 17 14 3 Storage 5 | . 14 11 11 11 11 9 7 6 5 5 5 5 5 5 5 5 5 5 4 4 3 1 Processor 20 | . . 11 11 11 11 9 12 19 19 23 23 23 22 16 23 21 21 21 21 22 27 33 Hackware 20 | . . 15 22 22 22 18 22 25 17 17 17 17 17 15 17 21 20 15 14 20 27 30 Ballistic Gun 2 | . 17 11 12 22 22 3 . . . . . . . . . . . . . . . . Piercing Weapon 3 | . . . . . . 3 7 6 5 5 5 5 5 5 5 5 5 5 4 4 4 1 Peak Build Rating 148 | 9 10 14 14 15 15 26 34 48 62 59 60 82 76 85 84 84 99 85 90 120 121 148 Average Rating 68 | 5 9 13 12 14 15 20 30 43 53 59 59 67 73 76 83 84 86 85 87 100 116 123 On Entrance 53 | . 9 10 14 14 15 15 24 34 48 59 59 60 72 69 80 84 84 89 85 90 112 107 Avg Prop Armor Cover (%) 5 | . . . 13 . . . . . 9 . . . 5 5 . . 4 . . . 4 4 Naked Turns . | . . . . . . . . . . . . . . . . . . . . . . . Heaviest Build 25 | 15 16 15 10 7 7 9 11 16 24 15 15 15 10 17 17 17 20 18 18 18 18 25 Greatest Support 70 | 20 20 20 12 8 8 11 12 12 19 19 19 27 27 27 27 27 27 27 27 27 27 70 Greatest Overweight (x) 6 | . 1 . 1 . . . . 1 3 . . . . 3 . . 1 . . . . 6 Average Overweight (x) . | . . . . . . . . . . . . . . . . . . . . . . . Largest Inventory Capacity 8 | 8 8 8 8 8 8 8 8 8 8 8 8 8 8 8 8 8 8 8 8 8 8 5 Average Capacity 7 | 6 8 8 8 8 8 8 8 8 8 8 8 8 8 8 8 8 8 8 8 8 7 5 Most Carried 8 | 1 8 8 8 8 8 8 8 8 8 8 8 8 8 8 8 8 8 8 8 8 8 5 Average Carried 7 | . 6 6 7 7 8 7 7 7 7 8 7 8 7 7 8 8 8 8 7 7 7 4 Final Capacity 8 | 8 8 8 8 8 8 8 8 8 8 8 8 8 8 8 8 8 8 8 8 8 5 5 Final Carried 8 | 1 8 7 8 8 8 8 8 8 8 8 8 8 8 8 8 8 8 8 8 8 4 1 Class Distribution -------------------- 52% | Hacker-Scout 16% | Wizard-Scout 6% | Hacker-Assassin 6% | Mutant 6% | Hacker-Mutant 4% | Scavenger-Mutant Dominant Class ---------------- Mutant | -10/Materials Hacker-Mutant | -9/Materials Scavenger-Mutant | -9/Mines Scavenger-Mutant | -9/Exiles Scavenger-Mutant | -8/Mines Hacker-Scout | -8/Materials Hacker-Scout | -7/Factory Hacker-Scout | -6/Factory Hacker-Scout | -5/Factory Hacker-Scout | -5/Upper Caves Hacker-Scout | -5/Upper Caves Hacker-Scout | -5/Zhirov Hacker-Assassin | -4/Proximity Caves Hacker-Scout | -4/Factory Hacker-Scout | -4/Upper Caves Hacker-Scout | -4/Upper Caves Hacker-Scout | -4/Warlord Hacker-Scout | -3/Proximity Caves Hacker-Scout | -3/Research Wizard-Scout | -2/Research Wizard-Scout | -1/Access Wizard-Scout | -1/Command Resources | -11 -10 -9 -9 -9 -8 -8 -7 -6 -5 -5 -5 -5 -4 -4 -4 -4 -4 -3 -3 -2 -1 -1 ----------- Run | Yrd Mat Mat Min Exi Min Mat Fac Fac Fac Upp Upp Zhi Pro Fac Upp Upp War Pro Res Res Acc Com Matter Collected 2601 | 304 423 . 132 . . 61 70 50 80 30 . . 70 272 139 209 116 1 . 34 60 550 Remotely 151 | 151 . . . . . . . . . . . . . . . . . . . . . . Salvage Created 2128 | 89 567 . 46 . . . 122 . 146 . . . . 510 . . . . . 32 126 490 Parts 91 | 7 33 . 4 . . . 7 . 9 . . . . 13 . . . . . 2 7 9 Haulers Intercepted 1 | . 1 . . . . . . . . . . . . . . . . . . . . . Recyclers Shooed 2 | . 2 . . . . . . . . . . . . . . . . . . . . . Parts Field Recycled . | . . . . . . . . . . . . . . . . . . . . . . . Retrieved Matter . | . . . . . . . . . . . . . . . . . . . . . . . Parts Self-Destructed . | . . . . . . . . . . . . . . . . . . . . . . . Prevented . | . . . . . . . . . . . . . . . . . . . . . . . Parts Restored . | . . . . . . . . . . . . . . . . . . . . . . . Kills | -11 -10 -9 -9 -9 -8 -8 -7 -6 -5 -5 -5 -5 -4 -4 -4 -4 -4 -3 -3 -2 -1 -1 ------- Run | Yrd Mat Mat Min Exi Min Mat Fac Fac Fac Upp Upp Zhi Pro Fac Upp Upp War Pro Res Res Acc Com Combat Hostiles Destroyed 19 | . 7 . 3 . . . . . . . . . . . . . . . . . . 9 Melee 2 | . . . . . . . . . . . . . . . . . . . . . . 2 Guns 5 | . 2 . 3 . . . . . . . . . . . . . . . . . . . Cannons 7 | . 5 . . . . . . . . . . . . . . . . . . . . 2 AOE 5 | . . . . . . . . . . . . . . . . . . . . . . 5 Classes Destroyed 11 | 2 5 . . . . . 1 . 2 . . . . . . . . . . . . 1 Worker 9 | . 1 . . . . . . . 1 . . . . 4 . . . . . . 1 2 Builder 2 | . . . . . . . . . 1 . . . . 1 . . . . . . . . Tunneler 2 | 1 . . . . . . . . . . . . . 1 . . . . . . . . Hauler 1 | . 1 . . . . . . . . . . . . . . . . . . . . . Recycler 9 | 1 4 . . . . . 1 . . . . . . 3 . . . . . . . . Mechanic 2 | . . . . . . . 1 . . . . . . . . . . . . . 1 . Operator 2 | . . . . . . . . . 1 . . . . . . . . . . 1 . . Watcher 6 | . 2 . . . . . . . 2 . . . . 1 . . . . . . 1 . Swarmer 6 | . 2 . 3 . . . . . . . . . . . . . . . . . . 1 Grunt 11 | . 5 . . . . . . . . . . . . . . . . . . . . 6 Programmer 2 | . . . . . . . . . . . . . . . . . . . . . . 2 Best Kill Streak 7 | 1 4 . 3 . . . 1 . 1 . . . . 4 . . . . . 1 2 7 Combat Bots Only 7 | . 3 . 3 . . . . . . . . . . . . . . . . . . 7 Max Kills in Single Turn 2 | 1 1 . 1 . . . 1 . 1 . . . . 1 . . . . . 1 1 2 Gunslinging . | . . . . . . . . . . . . . . . . . . . . . . . Exploded 2 | . . . . . . . . . . . . . . . . . . . . . . 2 Melee 1 | . . . . . . . . . . . . . . . . . . . . . . 1 Uniques/NPCs Destroyed . | . . . . . . . . . . . . . . . . . . . . . . . Combat | -11 -10 -9 -9 -9 -8 -8 -7 -6 -5 -5 -5 -5 -4 -4 -4 -4 -4 -3 -3 -2 -1 -1 -------- Run | Yrd Mat Mat Min Exi Min Mat Fac Fac Fac Upp Upp Zhi Pro Fac Upp Upp War Pro Res Res Acc Com Hostile Shots Fired 328 | . 44 15 56 . 5 2 . . . . 4 2 3 2 6 8 2 2 . . 23 154 Missed 120 | . 11 9 19 . 4 1 . . . . 3 1 . 1 2 7 1 . . . 10 51 Hits 208 | . 33 6 37 . 1 1 . . . . 1 1 3 1 4 1 1 2 . . 13 103 Projectile 208 | . 33 6 37 . 1 1 . . . . 1 1 3 1 4 1 1 2 . . 13 103 AOE 3 | . . . . . . . . . . . . . . . . . . . . . . 3 Critical Strikes 13 | . 1 . . . . . . . . . . . . . 1 . 1 . . . . 10 Part Disruptions 4 | . . . . . . . . 2 . . . . . . . . . . . . . 2 Damage Taken 5296 | . 457 71 333 . 17 18 . 24 . . 23 46 72 22 75 23 110 50 . . 772 3183 Core 1896 | . 72 27 159 . . . . 8 . . . . 58 22 36 . 21 . . . 471 1022 Absorbed by Shields . | . . . . . . . . . . . . . . . . . . . . . . . Reduced by Siege Mode 43 | . . . . . . . . . . . . . . . . . . . . . . 43 Regen/Repaired (Parts) 41 | . . . . . . . . . . . . . . . . . 11 . . 30 . . Core Remaining (%) 91 | 100 71 . . . 53 100 100 99 . . . . 94 . . . . 93 100 100 . . Volleys Fired 91 | 4 54 . 9 . . 1 . . . . . . . . . . . . . . . 23 Largest 2 | 2 2 . 1 . . 1 . . . . . . . . . . . . . . . 1 Hottest 80 | 40 80 . 40 . . 20 . . . . . . . . . . . . . . . 54 Shots Fired 138 | 8 97 . 9 . . 1 . . . . . . . . . . . . . . . 23 Gun 67 | 8 49 . 9 . . 1 . . . . . . . . . . . . . . . . Cannon 61 | . 44 . . . . . . . . . . . . . . . . . . . . 17 Launcher 10 | . 4 . . . . . . . . . . . . . . . . . . . . 6 Special . | . . . . . . . . . . . . . . . . . . . . . . . Kinetic 110 | 8 79 . 5 . . 1 . . . . . . . . . . . . . . . 17 Thermal 18 | . 14 . 4 . . . . . . . . . . . . . . . . . . . Explosive 10 | . 4 . . . . . . . . . . . . . . . . . . . . 6 Electromagnetic . | . . . . . . . . . . . . . . . . . . . . . . . Robot Hit Streak 10 | 2 10 . 2 . . 1 . . . . . . . . . . . . . . . 8 Robot Miss Streak 4 | 4 3 . 4 . . . . . . . . . . . . . . . . . . 2 Penetration Max . | . . . . . . . . . . . . . . . . . . . . . . . Secondary Targets . | . . . . . . . . . . . . . . . . . . . . . . . Shots Hit Robots 132 | 3 62 . 3 . . 1 2 1 7 . . . . 14 . . . . 2 1 6 30 Core Hits 75 | 3 24 . 3 . . . 2 . 5 . . . . 5 . . . . . 1 2 30 Critical Kills . | . . . . . . . . . . . . . . . . . . . . . . . Critical Parts Destroyed . | . . . . . . . . . . . . . . . . . . . . . . . Critical Strikes 7 | . 1 . . . . . . . . . . . . 3 . . . . . . 2 1 Blast 2 | . 1 . . . . . . . . . . . . . . . . . . . . 1 Impale 5 | . . . . . . . . . . . . . . 3 . . . . . . 2 . Melee Attacks 151 | . . . . . . 1 6 4 14 2 4 1 3 21 . 1 . 4 12 8 33 37 Impact . | . . . . . . . . . . . . . . . . . . . . . . . Slashing 7 | . . . . . . . . . . . . . . . . . . . . . . 7 Piercing 144 | . . . . . . 1 6 4 14 2 4 1 3 21 . 1 . 4 12 8 33 30 Sneak Attacks 18 | . . . . . . . 2 1 2 . . . . 9 . . . . . . 2 2 Combat Hostiles . | . . . . . . . . . . . . . . . . . . . . . . . Follow-up Attacks . | . . . . . . . . . . . . . . . . . . . . . . . Damage Inflicted 6404 | 36 897 . 31 . . 9 164 78 331 . . . . 866 . . . . 131 72 372 3417 Guns 484 | 36 408 . 31 . . 9 . . . . . . . . . . . . . . . . Cannons 1166 | . 487 . . . . . . . . . . . . . . . . . . . . 679 Explosions 1848 | . 2 . . . . . . . . . . . . . . . . . . . . 1846 Melee 2906 | . . . . . . . 164 78 331 . . . . 866 . . . . 131 72 372 892 Ramming . | . . . . . . . . . . . . . . . . . . . . . . . Kinetic 1478 | 36 723 . 31 . . 9 . . . . . . . . . . . . . . . 679 Thermal 172 | . 172 . . . . . . . . . . . . . . . . . . . . . Explosive 1848 | . 2 . . . . . . . . . . . . . . . . . . . . 1846 Electromagnetic . | . . . . . . . . . . . . . . . . . . . . . . . Impact . | . . . . . . . . . . . . . . . . . . . . . . . Slashing 405 | . . . . . . . . . . . . . . . . . . . . . . 405 Piercing 2501 | . . . . . . . 164 78 331 . . . . 866 . . . . 131 72 372 487 Highest Corruption 1 | . 1 . . . . . . . . . . . . . . . 1 1 . . . . Average Corruption 1 | . 1 . . . . . . . . . . . . . . . 1 1 . . . . Corruption Purged . | . . . . . . . . . . . . . . . . . . . . . . . Corruption Blocked 20 | . . . . . . . . . . . . . . . . . . . . . . 20 Effects 2 | . 2 . . . . . . . . . . . . . . . . . . . . . Matter Fused 2 | . 2 . . . . . . . . . . . . . . . . . . . . . Overload Shots . | . . . . . . . . . . . . . . . . . . . . . . . Overflow Damage 690 | . 1 . . . . . . 38 18 . . . . 329 . . . . 61 . 121 122 Projectiles 37 | . 1 . . . . . . . . . . . . . . . . . . . . 36 Explosions . | . . . . . . . . . . . . . . . . . . . . . . . Melee 653 | . . . . . . . . 38 18 . . . . 329 . . . . 61 . 121 86 Knockbacks 9 | . 6 . . . . . . . . . . . . . . . . . . . . 3 Impact . | . . . . . . . . . . . . . . . . . . . . . . . Kinetic 9 | . 6 . . . . . . . . . . . . . . . . . . . . 3 Secondary . | . . . . . . . . . . . . . . . . . . . . . . . Self-Inflicted Damage 87 | . . . . . . . . . . . . . . . . . . . . . . 87 Shots 1 | . . . . . . . . . . . . . . . . . . . . . . 1 Rammed . | . . . . . . . . . . . . . . . . . . . . . . . Targets Rammed 1 | . 1 . . . . . . . . . . . . . . . . . . . . . Kicked 1 | . 1 . . . . . . . . . . . . . . . . . . . . . Crushed . | . . . . . . . . . . . . . . . . . . . . . . . Highest Temperature 180 | . 180 . . . . . . . . . . . . . . . . . . . . . Average Temperature 50 | . 50 . . . . . . . . . . . . . . . . . . . . . Received Heat Transfer 586 | . 213 12 81 . 9 . . . . . . 9 . . 55 . . 9 . . . 198 Siege Activations 1 | . . . . . . . . . . . . . . . . . . . . . . 1 Total Turns 22 | . . . . . . . . . . . . . . . . . . . . . . 22 Longest Duration 22 | . . . . . . . . . . . . . . . . . . . . . . 22 Martial Activations . | . . . . . . . . . . . . . . . . . . . . . . . Shielding Activations . | . . . . . . . . . . . . . . . . . . . . . . . Robots Disrupted . | . . . . . . . . . . . . . . . . . . . . . . . Combat Hostiles . | . . . . . . . . . . . . . . . . . . . . . . . Robots Corrupted . | . . . . . . . . . . . . . . . . . . . . . . . Combat Hostiles . | . . . . . . . . . . . . . . . . . . . . . . . Parts Fried . | . . . . . . . . . . . . . . . . . . . . . . . Impact Corruptions . | . . . . . . . . . . . . . . . . . . . . . . . Robots Melted . | . . . . . . . . . . . . . . . . . . . . . . . Combat Hostiles . | . . . . . . . . . . . . . . . . . . . . . . . Parts Melted 1 | . 1 . . . . . . . . . . . . . . . . . . . . . Heat Transferred 370 | . 370 . . . . . . . . . . . . . . . . . . . . . Parts Sabotaged . | . . . . . . . . . . . . . . . . . . . . . . . Parts Stolen . | . . . . . . . . . . . . . . . . . . . . . . . Parts Stripped . | . . . . . . . . . . . . . . . . . . . . . . . Power Chain Reactions . | . . . . . . . . . . . . . . . . . . . . . . . Alert | -11 -10 -9 -9 -9 -8 -8 -7 -6 -5 -5 -5 -5 -4 -4 -4 -4 -4 -3 -3 -2 -1 -1 ------- Run | Yrd Mat Mat Min Exi Min Mat Fac Fac Fac Upp Upp Zhi Pro Fac Upp Upp War Pro Res Res Acc Com Maximum Alert Level 1 | . . . . . . . . . 1 . . . . . . . . . 1 . 1 1 Low Security (%) 90 | 100 100 100 100 . 100 100 100 100 99 . . . . 100 . . . . 15 100 96 64 Level 1 9 | . . . . . . . . . . . . . . . . . . . 85 . 3 35 Level 2 . | . . . . . . . . . . . . . . . . . . . . . . . Level 3 . | . . . . . . . . . . . . . . . . . . . . . . . Level 4 . | . . . . . . . . . . . . . . . . . . . . . . . Level 5 . | . . . . . . . . . . . . . . . . . . . . . . . High Security . | . . . . . . . . . . . . . . . . . . . . . . . Max Security . | . . . . . . . . . . . . . . . . . . . . . . . Peak Influence 275 | 5 110 95 34 . 45 16 25 52 200 . . . . 45 . . . . 275 175 236 260 Initial 150 | . . 32 34 . . 9 . 5 . . . . . . . . . . 150 148 86 60 Average 56 | 1 42 46 8 . 22 1 2 14 38 . . . . 6 . . . . 223 160 46 135 Influence Increases 3325 | 10 293 125 90 . 45 51 56 164 293 . 120 . . 145 . 30 98 . 355 87 500 863 Destroy 0b10 Robot/C 520 | . 140 . 60 . . . . . . . . . . . . . 60 . . . . 260 Destroy 0b10 Robot/NC 170 | 10 40 . . . . . 10 . 25 . . . . 50 . . . . . 5 15 15 Destroy Leader 84 | . 46 . . . . . . . 4 . . . . 2 . . . . . . 2 30 Allied During Kill 14 | . . . . . . . . . . . . . . . . . 8 . . . . 6 Successful Hack 575 | . 22 5 . . . 35 28 116 28 . . . . 87 . . . . 97 34 69 54 Select Force Hacks 30 | . . . . . . . . 30 . . . . . . . . . . . . . . Disable Machine 90 | . 30 . . . . . 15 . 15 . . . . . . . . . 15 . . 15 Anti-Garrison Action 200 | . . . . . . . . . 200 . . . . . . . . . . . . . Destroy Structure 292 | . 15 . . . . 1 3 3 6 . . . . 6 . . . . 18 18 69 153 Advance Influence 150 | . . . . . . . . . . . . . . . . . . . 150 . . . Partial Spotted 180 | . . 30 . . . . . 15 . . . . . . . . . . 60 15 . 60 Lose Combat Pursuer 1020 | . . 90 30 . 45 15 . . 15 . 120 . . . . 30 30 . 15 15 345 270 Influence Decreases 3135 | 10 216 112 180 . 20 76 44 176 284 9 70 50 . 100 45 . 112 16 90 207 549 769 Entered New Map 454 | . . 45 56 . . 16 . 7 . 4 . 50 . . 18 . 30 16 . 117 59 36 Time Decay 2063 | 10 206 67 80 . 20 60 44 161 254 . 70 . . 98 27 . 33 . 90 90 260 493 Search Patrol Dispatched 100 | . . . . . . . . . . . . . . . . . . . . . 100 . Lost Part 364 | . 10 . 44 . . . . . . . . . . . . . 10 . . . 80 220 Lost Ally 124 | . . . . . . . . 8 30 5 . . . 2 . . 39 . . . 20 20 Purge Threat 30 | . . . . . . . . . . . . . . . . . . . . . 30 . Squads Dispatched 32 | . 2 2 . . . . 2 2 4 . . . . 3 . . . . . . 5 12 Investigation 5 | . . . . . . . . 1 1 . . . . 1 . . . . . . 1 1 Extermination 17 | . . . . . . . 2 1 2 . . . . 1 . . . . . . 4 7 Reinforcement 9 | . 2 2 . . . . . . . . . . . 1 . . . . . . . 4 Assault . | . . . . . . . . . . . . . . . . . . . . . . . Garrison 1 | . . . . . . . . . 1 . . . . . . . . . . . . . Intercept . | . . . . . . . . . . . . . . . . . . . . . . . Searches Triggered 1 | . . . . . . . . . . . . . . . . . . . . . 1 . Construction Impeded . | . . . . . . . . . . . . . . . . . . . . . . . Haulers Reinforced . | . . . . . . . . . . . . . . . . . . . . . . . Active Scanning Responses . | . . . . . . . . . . . . . . . . . . . . . . . Cargo Convoy Interrupts . | . . . . . . . . . . . . . . . . . . . . . . . Stealth | -11 -10 -9 -9 -9 -8 -8 -7 -6 -5 -5 -5 -5 -4 -4 -4 -4 -4 -3 -3 -2 -1 -1 --------- Run | Yrd Mat Mat Min Exi Min Mat Fac Fac Fac Upp Upp Zhi Pro Fac Upp Upp War Pro Res Res Acc Com Distress Signals 16 | . 1 2 . . . . . 2 1 . . . . . . . 1 . . 1 1 7 Communications Jammed . | . . . . . . . . . . . . . . . . . . . . . . . Distress Signals . | . . . . . . . . . . . . . . . . . . . . . . . Times Spotted 211 | . 16 16 13 . 3 1 . 11 11 . 4 3 1 8 3 5 23 2 2 2 39 48 Peak Tracking Total 15 | . 5 15 15 . 3 1 . 2 2 . 8 3 1 3 3 5 14 2 2 1 12 8 Tactical Retreats 28 | . . 2 2 . 1 1 . . 1 . 3 . . . . 1 2 . 1 1 5 8 ECM-based Alert Blocks 1 | . . . . . . . . . . . . . . . . . . . . . . 1 Traps | -11 -10 -9 -9 -9 -8 -8 -7 -6 -5 -5 -5 -5 -4 -4 -4 -4 -4 -3 -3 -2 -1 -1 ------- Run | Yrd Mat Mat Min Exi Min Mat Fac Fac Fac Upp Upp Zhi Pro Fac Upp Upp War Pro Res Res Acc Com Traps Triggered 1 | . 1 . . . . . . . . . . . . . . . . . . . . . Indirectly . | . . . . . . . . . . . . . . . . . . . . . . . Trap Hack Attempts . | . . . . . . . . . . . . . . . . . . . . . . . Triggered . | . . . . . . . . . . . . . . . . . . . . . . . Disarmed . | . . . . . . . . . . . . . . . . . . . . . . . Reprogrammed . | . . . . . . . . . . . . . . . . . . . . . . . Reused . | . . . . . . . . . . . . . . . . . . . . . . . Traps Extracted . | . . . . . . . . . . . . . . . . . . . . . . . Installed . | . . . . . . . . . . . . . . . . . . . . . . . Triggered . | . . . . . . . . . . . . . . . . . . . . . . . Machines | -11 -10 -9 -9 -9 -8 -8 -7 -6 -5 -5 -5 -5 -4 -4 -4 -4 -4 -3 -3 -2 -1 -1 ---------- Run | Yrd Mat Mat Min Exi Min Mat Fac Fac Fac Upp Upp Zhi Pro Fac Upp Upp War Pro Res Res Acc Com Machines Disabled 8 | . 2 . . . . . 1 . 1 . 1 1 . . . . . . 1 . . 1 Max in Single Turn 1 | . 1 . . . . . 1 . 1 . 1 1 . . . . . . 1 . . 1 Garrison Access 3 | . . . . . . . . . 1 . . . . . . . . . . 1 1 . Machines Repaired . | . . . . . . . . . . . . . . . . . . . . . . . Machines Dismantled . | . . . . . . . . . . . . . . . . . . . . . . . Machines Sabotaged . | . . . . . . . . . . . . . . . . . . . . . . . Overloaded Fab Kills . | . . . . . . . . . . . . . . . . . . . . . . . Hacking | -11 -10 -9 -9 -9 -8 -8 -7 -6 -5 -5 -5 -5 -4 -4 -4 -4 -4 -3 -3 -2 -1 -1 --------- Run | Yrd Mat Mat Min Exi Min Mat Fac Fac Fac Upp Upp Zhi Pro Fac Upp Upp War Pro Res Res Acc Com Machines Accessed 87 | . 2 1 1 2 . 9 6 11 3 1 1 4 . 9 1 2 3 . 4 3 15 9 Terminals 51 | . 2 1 . . . 6 3 6 1 1 . . . 5 . 1 . . 2 3 11 9 Fabricators 8 | . . . . . . . 1 1 1 . . . . 3 . . . . 1 . 1 . Repair Stations 1 | . . . . . . . 1 . . . . . . . . . . . . . . . Recycling Units 1 | . . . . . . . . 1 . . . . . . . . . . . . . . Scanalyzers 7 | . . . . . . 2 . 1 . . . . . 1 . . . . 1 . 2 . Garrison Access 6 | . . . . . . 1 1 2 1 . . . . . . . . . . . 1 . Total Hacks 398 | . 4 4 1 5 . 57 31 51 14 7 1 16 . 39 1 12 7 . 21 23 65 39 Successful 226 | . 3 1 1 5 . 35 12 17 6 7 1 16 . 21 1 12 7 . 9 5 38 29 Failed 172 | . 1 3 . . . 22 19 34 8 . . . . 18 . . . . 12 18 27 10 Catastrophic 37 | . 1 . . . . 3 4 6 1 . . . . 4 . . . . 5 8 4 1 Database Lockouts . | . . . . . . . . . . . . . . . . . . . . . . . Manual 179 | . 2 4 . 1 . 29 18 34 8 . . . . 26 . . . . 15 4 22 16 Terminals 255 | . 4 4 . . . 30 19 31 6 7 . . . 22 . 6 . . 13 23 51 39 Fabricators 41 | . . . . . . . 5 7 4 . . . . 15 . . . . 4 . 6 . Repair Stations 2 | . . . . . . . 2 . . . . . . . . . . . . . . . Recycling Units 1 | . . . . . . . . 1 . . . . . . . . . . . . . . Scanalyzers 32 | . . . . . . 17 . 3 . . . . . 2 . . . . 4 . 6 . Garrison Access 30 | . . . . . . 10 5 9 4 . . . . . . . . . . . 2 . Terminal Hacks 135 | . 2 . 1 5 . 11 9 3 2 7 1 16 . 9 1 12 7 . 2 4 21 22 Record 34 | . . . . 4 . . . . . 7 1 4 . . . 12 . . . . 1 5 Part Schematic 5 | . . . . . . 1 . . . . . 4 . . . . . . . . . . Robot Analysis 6 | . . . . . . . . 1 . . . 4 . . . . . . . . 1 . Prototype ID Bank 26 | . 1 . . . . 5 5 1 . . . 4 . 2 . . 5 . . 1 . 2 Open Door 8 | . . . 1 . . . . . . . . . . . 1 . 2 . . . 3 1 Level Access Points 4 | . . . . . . 1 . . 1 . . . . . . . . . . 1 . 1 Branch Access Points 4 | . . . . . . . 1 . . . . . . 1 . . . . . 1 1 . Emergency Access Points 2 | . . . . . . . 1 . . . . . . . . . . . . . . 1 Machine Index 3 | . . . . . . . . . . . . . . . . . . . . 1 1 1 Terminal Index 4 | . . . . . . 1 . . . . . . . 1 . . . . 1 . 1 . Repair Station Index 1 | . . . . . . . . . . . . . . 1 . . . . . . . . Scanalyzer Index 2 | . . . . . . . . . . . . . . 1 . . . . . . 1 . Garrison Index 1 | . . . . . . . . . . . . . . . . . . . . . 1 . Alert Level 3 | . . . . . . . . 1 . . . . . . . . . . . . 1 1 Unreport Threat 1 | . . . . . . . . . . . . . . . . . . . . . 1 . Locate Traps 6 | . . . . . . 1 1 . 1 . . . . . . . . . . . 1 2 Dispatch Records 3 | . . . . . . . 1 . . . . . . . . . . . . . 1 1 Patrol Status 1 | . . . . . . . . . . . . . . . . . . . . . . 1 Recall Investigation 1 | . . . . . . . . . . . . . . . . . . . . . 1 . Recall Extermination 3 | . . . . . . . . . . . . . . . . . . . . . 3 . Registered Components 1 | . . . . . . . . . . . . . . 1 . . . . . . . . Registered Prototypes 1 | . . . . . . . . . . . . . . . . . . . . . . 1 Zone Layout 12 | . 1 . . . . 2 . . . . . . . 2 . . . . 1 . 3 3 Proto ID Catalog 1 | . . . . 1 . . . . . . . . . . . . . . . . . . Disengage Seal 2 | . . . . . . . . . . . . . . . . . . . . . . 2 Fabricator Hacks 7 | . . . . . . . . 1 1 . . . . 2 . . . . . . 3 . Network Status 4 | . . . . . . . . 1 1 . . . . 1 . . . . . . 1 . Load Schematic 1 | . . . . . . . . . . . . . . . . . . . . . 1 . Build 2 | . . . . . . . . . . . . . . 1 . . . . . . 1 . Repair Station Hacks 1 | . . . . . . . 1 . . . . . . . . . . . . . . . Scan Component 1 | . . . . . . . 1 . . . . . . . . . . . . . . . Recycling Unit Hacks . | . . . . . . . . . . . . . . . . . . . . . . . Scanalyzer 25 | . . . . . . 17 . 2 . . . . . . . . . . 1 . 5 . Insert Component 10 | . . . . . . 7 . . . . . . . . . . . . 1 . 2 . Analyze 7 | . . . . . . 6 . . . . . . . . . . . . . . 1 . Retrieve Study 8 | . . . . . . 4 . 2 . . . . . . . . . . . . 2 . Garrison Access Hacks 1 | . . . . . . . . . . . . . . . . . . . . . 1 . Seal Access 1 | . . . . . . . . . . . . . . . . . . . . . 1 . Unauthorized Hacks 56 | . 1 1 . . . 7 2 11 3 . . . . 10 . . . . 6 1 8 6 Terminals 35 | . 1 1 . . . 4 1 6 . . . . . 6 . . . . 3 1 6 6 Track 4 | . . . . . . 1 . . . . . . . 1 . . . . . . 1 1 Assimilate 8 | . . . . . . . . 4 . . . . . 2 . . . . . . 2 . Botnet 22 | . 1 1 . . . 3 1 2 . . . . . 3 . . . . 2 1 3 5 Disrupt 1 | . . . . . . . . . . . . . . . . . . . 1 . . . Fabricators 10 | . . . . . . . . 1 1 . . . . 4 . . . . 3 . 1 . Report 1 | . . . . . . . . . . . . . . . . . . . 1 . . . Liberate 2 | . . . . . . . . . . . . . . 1 . . . . 1 . . . Fabnet 7 | . . . . . . . . 1 1 . . . . 3 . . . . 1 . 1 . Repair Stations . | . . . . . . . . . . . . . . . . . . . . . . . Recycling Units 1 | . . . . . . . . 1 . . . . . . . . . . . . . . Tunnel 1 | . . . . . . . . 1 . . . . . . . . . . . . . . Scanalyzers . | . . . . . . . . . . . . . . . . . . . . . . . Garrison Access 10 | . . . . . . 3 1 3 2 . . . . . . . . . . . 1 . Redirect 1 | . . . . . . . . 1 . . . . . . . . . . . . . . Reprogram 2 | . . . . . . 1 . 1 . . . . . . . . . . . . . . Intercept 1 | . . . . . . 1 . . . . . . . . . . . . . . . . Watchers 5 | . . . . . . 1 1 1 1 . . . . . . . . . . . 1 . Jam 1 | . . . . . . . . . 1 . . . . . . . . . . . . . Data Cores Recovered 1 | . . . . . . . . . . . . . . . . . . . . 1 . . Used 1 | . . . . . . . . . . . . . . . . . . . . 1 . . Hacking Detections 64 | . 2 1 . . . 9 5 9 3 . . . . 9 . 1 . . 4 3 10 8 Full Trace Events 2 | . . . . . . . . . . . . . . 1 . . . . . . 1 . Feedback Events . | . . . . . . . . . . . . . . . . . . . . . . . Feedback Blocked . | . . . . . . . . . . . . . . . . . . . . . . . Robot Schematics Acquired . | . . . . . . . . . . . . . . . . . . . . . . . Robots Built 1 | . . . . . . . . . . . . . . 1 . . . . . . . . Authchips . | . . . . . . . . . . . . . . . . . . . . . . . Time 93 | . . . . . . . . . . . . . . 93 . . . . . . . . Total Robot Build Rating 7 | . . . . . . . . . . . . . . 7 . . . . . . . . Part Schematics Acquired 12 | . . . . . . 7 . . . . . 4 . . . . . . . . 1 . Parts Built 1 | . . . . . . . . . . . . . . . . . . . . . 1 . Authchips . | . . . . . . . . . . . . . . . . . . . . . . . Time 62 | . . . . . . . . . . . . . . . . . . . . . 62 . Total Part Build Rating 7 | . . . . . . . . . . . . . . . . . . . . . 7 . Part Studies Acquired 8 | . . . . . . 4 . 2 . . . . . . . . . . . . 2 . Parts Repaired . | . . . . . . . . . . . . . . . . . . . . . . . Time . | . . . . . . . . . . . . . . . . . . . . . . . Parts Recycled . | . . . . . . . . . . . . . . . . . . . . . . . Recycled Matter . | . . . . . . . . . . . . . . . . . . . . . . . Retrieved Matter . | . . . . . . . . . . . . . . . . . . . . . . . Retrieved Components . | . . . . . . . . . . . . . . . . . . . . . . . Parts Scanalyzed 7 | . . . . . . 6 . . . . . . . . . . . . . . 1 . Part Schematics Acquired 7 | . . . . . . 6 . . . . . . . . . . . . . . 1 . Parts Damaged . | . . . . . . . . . . . . . . . . . . . . . . . Bothacking | -11 -10 -9 -9 -9 -8 -8 -7 -6 -5 -5 -5 -5 -4 -4 -4 -4 -4 -3 -3 -2 -1 -1 ------------ Run | Yrd Mat Mat Min Exi Min Mat Fac Fac Fac Upp Upp Zhi Pro Fac Upp Upp War Pro Res Res Acc Com Used RIF Installer . | . . . . . . . . . . . . . . . . . . . . . . . Robots Hacked 6 | . . . . . . . . . 2 . . . . . . . 4 . . . . . Non-combat . | . . . . . . . . . . . . . . . . . . . . . . . Combat 6 | . . . . . . . . . 2 . . . . . . . 4 . . . . . Robot Hacks Applied . | . . . . . . . . . . . . . . . . . . . . . . . Relay Couplers Released 2 | . . . . . . . . . . . . . . . . . . . . 2 . . Machine Destruction 2 | . . . . . . . . . . . . . . . . . . . . 2 . . Fabnet Peak Effective % 10 | . . . . . . . . . 3 3 3 3 4 4 4 4 4 10 10 6 1 1 Autooverrided 6 | . . . . . . . . . 2 . . . . . . . 4 . . . . . Robots Rewired 7 | . . . . . . . . 1 . . . . . 1 . . 5 . . . . . Allies Hacked 1 | . . . . . . . . . . . . . . . . . . . . . 1 . Hacks Repelled . | . . . . . . . . . . . . . . . . . . . . . . . Allies | -11 -10 -9 -9 -9 -8 -8 -7 -6 -5 -5 -5 -5 -4 -4 -4 -4 -4 -3 -3 -2 -1 -1 -------- Run | Yrd Mat Mat Min Exi Min Mat Fac Fac Fac Upp Upp Zhi Pro Fac Upp Upp War Pro Res Res Acc Com Total Allies 18 | . . . . . . . . 3 2 . . . . 2 . . 9 . . . 2 . Largest Group 6 | . . . . . . . . 2 2 . . . . 1 . . 6 . . . 1 . Highest-Rated Group 309 | . . . . . . . . 36 55 . . . . 56 . . 309 . . . 45 . Highest-Rated Ally 148 | . . . . . . . . 34 29 . . . . 56 . . 148 . . . 45 . Total Orders 12 | . . . . . . . . 3 8 . . . . 1 . . . . . . . . STAY 2 | . . . . . . . . . 2 . . . . . . . . . . . . . ROAM 1 | . . . . . . . . . . . . . . 1 . . . . . . . . FOLLOW 2 | . . . . . . . . . 2 . . . . . . . . . . . . . EXPLORE 5 | . . . . . . . . 1 4 . . . . . . . . . . . . . RETURN 2 | . . . . . . . . 2 . . . . . . . . . . . . . . Ally Attacks 45 | . . . . . . . . . 4 . . . . 3 . . 18 . . . . 20 Total Damage 1368 | . . . . . . . . . 58 . . . . 125 . . 762 . . . . 423 Kills 8 | . . . . . . . . . . . . . . . . . 3 . . . . 5 Allies Corrupted 1 | . . . . . . . . . . . . . . . . . 1 . . . . . Allies Melted . | . . . . . . . . . . . . . . . . . . . . . . . Intel | -11 -10 -9 -9 -9 -8 -8 -7 -6 -5 -5 -5 -5 -4 -4 -4 -4 -4 -3 -3 -2 -1 -1 ------- Run | Yrd Mat Mat Min Exi Min Mat Fac Fac Fac Upp Upp Zhi Pro Fac Upp Upp War Pro Res Res Acc Com Active Infowar (turns) 9412 | 9 531 157 317 88 71 503 499 619 910 377 141 72 332 419 263 331 1051 130 180 185 846 1381 Optics 7861 | . . 157 317 88 71 503 499 91 427 377 141 72 332 419 263 331 1051 130 180 185 846 1381 Sensors 1981 | . . . . . . . . . . 377 141 72 332 14 262 329 201 130 40 . 83 . Terrain 6418 | 9 531 . . . . 503 35 527 831 377 141 70 329 419 263 331 8 130 180 185 846 703 Structural 5263 | . . 42 . . . 501 425 94 909 377 141 62 332 379 263 331 196 130 180 185 716 . Traps 3939 | . . . . . . . 499 607 606 . . . . 389 263 178 193 130 180 185 709 . Machine Analysis 3988 | . . . . . . . 99 619 910 377 141 72 298 . . . . . . . 794 678 ECM 73 | . . . . . . . . . . . . . . . . . . . . . . 73 Robot Analysis Total 6 | . . . . . . . . 1 . . . 4 . . . . . . . . 1 . Derelict Logs Recovered 6 | . . . 1 . . . . . . 1 . . 1 . 2 1 . . . . . . Drone Launches 7 | . . . . . . . . 2 3 . . . . . . . . . . . . 2 Drone Recoveries 3 | . . . . . . . . 2 1 . . . . . . . . . . . . . Exploration | -11 -10 -9 -9 -9 -8 -8 -7 -6 -5 -5 -5 -5 -4 -4 -4 -4 -4 -3 -3 -2 -1 -1 ------------- Run | Yrd Mat Mat Min Exi Min Mat Fac Fac Fac Upp Upp Zhi Pro Fac Upp Upp War Pro Res Res Acc Com Turns Passed 9632 | 83 677 157 317 88 71 503 499 619 910 377 141 72 332 419 263 331 1051 130 180 185 846 1381 Spaces Moved 14317 | 49 380 235 387 217 191 814 1063 955 1343 723 334 147 392 722 334 509 899 250 319 481 1367 2206 Core 82 | 5 . . 59 . . . . . . . . . . 5 . . . . . . . 13 Treads 67 | . . . . . . . . . . . . . . . . . . . . . . 67 Legs 441 | 44 380 17 . . . . . . . . . . . . . . . . . . . . Wheels . | . . . . . . . . . . . . . . . . . . . . . . . Hover 733 | . . 218 97 . . . . . . . . . . . . . . . . . 85 333 Flight 12994 | . . . 231 217 191 814 1063 955 1343 723 334 147 392 717 334 509 899 250 319 481 1282 1793 Fastest Speed 20 | 50 120 56 37 37 37 34 32 32 30 30 30 20 20 20 20 20 20 20 20 20 20 28 Average Speed 36 | 112 120 60 52 37 37 35 33 34 33 30 30 29 29 29 28 28 29 28 28 28 28 39 Slowest Speed 350 | 120 190 120 120 37 37 37 34 112 280 30 30 30 32 200 29 29 96 29 29 29 40 350 Overloaded Moves 828 | . . . . . . . . . . . . 10 3 30 8 54 23 15 3 7 205 470 Propulsion Burnouts 1 | . . . . . . . . . . . . . . . . . . . . . . 1 Robots Hopped 58 | . . . 2 . . 2 . 19 2 . . . . 6 . . . 1 . . 12 14 Potential Cave-ins 6 | . 2 . . . . . . . . . . . . . . . 4 . . . . . Cave-ins Triggered 1 | . . . . . . . . . . . . . . . . . 1 . . . . . Teleports 1 | . . . . . . . . . . . . . . . . . . . . . 1 . Exploration Rate (%) 46 | 3 58 33 66 64 43 65 28 30 33 78 59 61 65 20 60 54 93 54 10 19 39 42 Regions Visited 22 Branch Regions 12 Pre-discovered Areas 7 | . . . 1 1 . . . 1 . 1 . 3 . . . . . . . . . . Known Exits Taken 16 | . . . . . . 1 1 1 1 1 1 1 1 1 1 1 1 1 1 1 1 . Unknown Exits Taken 6 | 1 1 1 1 1 1 . . . . . . . . . . . . . . . . . Scrap Searched 11 | . . . . . . . . . . 2 1 . . . 4 3 . 1 . . . . Spaces Dug 77 | . . . . . . 1 3 3 3 2 1 . 2 2 . 1 . 1 9 6 24 19 Terrain Destroyed 172 | . 26 . . . . 1 3 3 3 2 1 . 2 2 . 1 . 1 9 6 24 88 Melee 77 | . . . . . . 1 3 3 3 2 1 . 2 2 . 1 . 1 9 6 24 19 Projectile 2 | . . . . . . . . . . . . . . . . . . . . . . 2 AOE 93 | . 26 . . . . . . . . . . . . . . . . . . . . 67 Terrain Rammed . | . . . . . . . . . . . . . . . . . . . . . . . Walls Destroyed . | . . . . . . . . . . . . . . . . . . . . . . . Machines Disabled . | . . . . . . . . . . . . . . . . . . . . . . . Actions | -11 -10 -9 -9 -9 -8 -8 -7 -6 -5 -5 -5 -5 -4 -4 -4 -4 -4 -3 -3 -2 -1 -1 --------- Run | Yrd Mat Mat Min Exi Min Mat Fac Fac Fac Upp Upp Zhi Pro Fac Upp Upp War Pro Res Res Acc Com Total 18338 | 65 505 249 490 224 190 1034 1204 1227 1782 878 368 175 608 884 499 694 1683 301 390 512 1755 2621 Wait 3392 | 4 30 . 81 6 . 187 100 237 384 153 29 5 188 124 163 184 746 48 54 17 349 303 Move 14189 | 48 379 234 382 216 190 809 1062 920 1338 722 333 146 391 711 333 508 897 247 318 480 1344 2181 Hop 47 | . . . 2 . . 2 . 15 2 . . . . 4 . . . 1 . . 10 11 Pick Up 109 | . 15 4 4 1 . 11 13 16 15 . 1 1 12 3 . . . . 3 . 3 7 Fast Attach 89 | 8 3 . 5 . . 3 3 2 5 . . 9 1 5 2 . 6 . . 5 6 26 Attach 32 | . . 2 2 . . 2 2 2 3 . . . . 2 . . . . 1 . 4 12 Detach 33 | 1 . 1 2 . . 3 2 2 3 . . 1 . 3 1 . . . . 1 2 11 Swap 31 | . 9 4 . . . 1 2 2 1 1 . 2 . . . 1 2 . . . 1 5 Drop 127 | . 14 4 3 1 . 14 14 14 17 . 1 10 13 4 . . 6 1 2 1 3 5 Fire 91 | 4 54 . 9 . . 1 . . . . . . . . . . . . . . . 23 Melee 151 | . . . . . . 1 6 4 14 2 4 1 3 21 . 1 . 4 12 8 33 37 Ram . | . . . . . . . . . . . . . . . . . . . . . . . Kick 1 | . 1 . . . . . . . . . . . . . . . . . . . . . Crush . | . . . . . . . . . . . . . . . . . . . . . . . Escape Stasis 1 | . . . . . . . . . . . . . . . . . 1 . . . . . Rewire 45 | . . . . . . . . 13 . . . . . 7 . . 25 . . . . . Trap . | . . . . . . . . . . . . . . . . . . . . . . . Miscellaneous . | . . . . . . . . . . . . . . . . . . . . . . . Route ------- -11/Scrapyard -10/Materials (discovered 3 exits: *Mat x3) -9/Materials -9/Mines (discovered 2 exits: *Mat / *Exi) -9/Exiles (discovered 2 exits: [*Min x2]) -8/Mines -8/Materials (discovered 5 exits: *Fac x3 / [*Sto x2]) -7/Factory (discovered 4 exits: *Fac x2 / *Low x2) -6/Factory -5/Factory (discovered 7 exits: *Fac x4 / *Upp x2 / [Ext]) -5/Upper Caves -5/Upper Caves -5/Zhirov -4/Proximity Caves -4/Factory (discovered 4 exits: Res / *Upp x2 / Arm) -4/Upper Caves -4/Upper Caves (discovered 2 exits: Res / *War) -4/Warlord -3/Proximity Caves -3/Research (discovered 2 exits: *Res / Tes) -2/Research (discovered 5 exits: *Acc x3 / Qua x2) -1/Access -1/Command (discovered 1 exit: Sur) History --------- Turn | Location | Event 5 | -11/Scrapyard | Discovered new exit (range 14) 84 | -11/Scrapyard | Entered Materials 241 | -10/Materials | Discovered new exit (range 13) 315 | -10/Materials | Build established: Mutant 424 | -10/Materials | Discovered new exit (range 10) 569 | -10/Materials | Discovered new exit (range 16) 761 | -10/Materials | Entered another Materials area 761 | -9/Materials | Evolved 2 slots: Utility x2 915 | -9/Materials | Discovered new exit (range 7) 918 | -9/Materials | Entered Mines 941 | -9/Mines | Assembled infested the area 946 | -9/Mines | Met a Derelict who couldn't figure out how to use a Trap Extractor 1125 | -9/Mines | Discovered new exit (range 9) 1132 | -9/Mines | Found a Scrap Suit stashed away for nefarious purposes 1138 | -9/Mines | Met 8R-AWN 1233 | -9/Mines | Discovered new exit (range 5) 1235 | -9/Mines | Entered Exiles 1240 | -9/Exiles | Discovered new exit (range 16) 1244 | -9/Exiles | Welcomed by 8R-AWN 1251 | -9/Exiles | Met EX-HEX 1268 | -9/Exiles | Met EX-BIN 1272 | -9/Exiles | Aligned with FarCom system 1273 | -9/Exiles | Given EX-Vault access code 1281 | -9/Exiles | Opened EX-Vault 1284 | -9/Exiles | Found Superbattery 1293 | -9/Exiles | Warned to stay clear of 0b10 Research branches 1304 | -9/Exiles | Met EX-DEC 1308 | -9/Exiles | Learned location of Zion (-7) 1320 | -9/Exiles | Discovered new exit (range 10) 1323 | -9/Exiles | Left Exiles lab with Superbattery 1323 | -9/Exiles | Entered Mines 1374 | -8/Mines | Discovered new exit (range 9) 1380 | -8/Mines | Build established: Scavenger-Mutant 1394 | -8/Mines | Entered Materials 1394 | -8/Materials | Evolved 2 slots: Utility x2 1502 | -8/Materials | Discovered new exit (range 18) 1596 | -8/Materials | Identified exit to Factory 1611 | -8/Materials | Discovered new exit (range 18) 1699 | -8/Materials | Met 7R-MNS 1747 | -8/Materials | Discovered new exit (range 7) 1897 | -8/Materials | Entered Factory 1897 | -7/Factory | Evolved 2 slots: Utility x2 1898 | -7/Factory | Caught up to 7R-MNS 2110 | -7/Factory | Discovered new exit (range 17) 2126 | -7/Factory | Build established: Hacker-Scout 2290 | -7/Factory | Discovered new exit (range 5) 2316 | -7/Factory | Discovered new exit (range 15) 2327 | -7/Factory | Identified exit to Lower Caves 2396 | -7/Factory | Identified exit to Factory 2396 | -7/Factory | Entered another Factory area 2396 | -6/Factory | Evolved 2 slots: Utility x2 2397 | -6/Factory | Caught up to 7R-MNS 2961 | -6/Factory | Discovered new exit (range 20) 3009 | -6/Factory | Identified exit to Factory 3015 | -6/Factory | Entered another Factory area 3015 | -5/Factory | Accompanied by 1 ally 3015 | -5/Factory | Evolved 2 slots: Propulsion x1, Utility x1 3016 | -5/Factory | Caught up to 7R-MNS 3048 | -5/Factory | Identified exit to Factory 3195 | -5/Factory | Garrison activated, responded to threat 3223 | -5/Factory | Local machine network offline 3536 | -5/Factory | Discovered new exit (range 6) 3537 | -5/Factory | Identified exit to Upper Caves 3843 | -5/Factory | Discovered new exit (range 13) 3902 | -5/Factory | Discovered exit to Upper Caves (range 13) 3925 | -5/Factory | Entered Upper Caves 3925 | -5/Upper Caves | Accompanied by 1 ally 3933 | -5/Upper Caves | Learned location of Armory (-4) 3980 | -5/Upper Caves | Found DCF Scrap (13 items) 4213 | -5/Upper Caves | Learned Research emergency access door positions 4213 | -5/Upper Caves | Learned Extension stockpile data 4213 | -5/Upper Caves | Learned Research garrison access intel 4259 | -5/Upper Caves | Discovered new exit (range 18) 4301 | -5/Upper Caves | Identified exit to Upper Caves 4302 | -5/Upper Caves | Entered another Upper Caves area 4316 | -5/Upper Caves | Encountered a Warlord checkpoint 4383 | -5/Upper Caves | Found Alien Artifact 4426 | -5/Upper Caves | Discovered new exit (range 13) 4429 | -5/Upper Caves | Identified exit to Zhirov 4443 | -5/Upper Caves | Entered Zhirov 4443 | -5/Zhirov | Discovered new exit (range 3) 4444 | -5/Zhirov | Identified exit to Proximity Caves 4449 | -5/Zhirov | Met Zhirov 4455 | -5/Zhirov | Learned location of Quarantine (-2) 4455 | -5/Zhirov | Learned location of Testing (-3) 4458 | -5/Zhirov | Zhirov requested help retrieving the SGEMP Prototype 4463 | -5/Zhirov | Found Alien Artifact 4463 | -5/Zhirov | Identified Integrated Dissipator 4463 | -5/Zhirov | Installed Integrated Dissipator, increased core heat dissipation (+20) 4470 | -5/Zhirov | Found Alien Artifact 4511 | -5/Zhirov | Cloak Generator disabled 4511 | -5/Zhirov | Attacked by Zhirov 4515 | -5/Zhirov | Entered Proximity Caves 4812 | -4/Proximity Caves | Learned location of 1 exit from Research 4813 | -4/Proximity Caves | Spotted B-86 Titan 4844 | -4/Proximity Caves | Discovered exit to Factory (range 12) 4847 | -4/Proximity Caves | Entered Factory 4847 | -4/Factory | Evolved 2 slots: Utility x2 4868 | -4/Factory | Build established: Hacker-Assassin 4898 | -4/Factory | Watched by a mysterious "MATRIX" hacker 5078 | -4/Factory | Fabricated M-36 Artificer? 5117 | -4/Factory | Identified exit to Upper Caves 5117 | -4/Factory | Identified exit to Armory 5199 | -4/Factory | Build established: Hacker-Scout 5257 | -4/Factory | Discovered new exit (range 7) 5266 | -4/Factory | Entered Upper Caves 5327 | -4/Upper Caves | Encountered a Warlord checkpoint 5335 | -4/Upper Caves | Learned Research terminal intel 5360 | -4/Upper Caves | Learned location of 1 exit from Proximity Caves 5370 | -4/Upper Caves | Discovered new exit (range 13) 5529 | -4/Upper Caves | Identified exit to Upper Caves 5529 | -4/Upper Caves | Entered another Upper Caves area 5539 | -4/Upper Caves | Learned 4 Research zone layouts 5554 | -4/Upper Caves | Learned location of 1 exit from Research 5554 | -4/Upper Caves | Learned 8 Factory zone layouts 5554 | -4/Upper Caves | Identified exit to Research 5554 | -4/Upper Caves | Learned Factory trap positions 5554 | -4/Upper Caves | Learned Extension security intel 5589 | -4/Upper Caves | Learned Research stockpile data 5589 | -4/Upper Caves | Learned Extension garrison access intel 5849 | -4/Upper Caves | Attracted the attention of an 0b10 checkpoint 5854 | -4/Upper Caves | Discovered new exit (range 6) 5856 | -4/Upper Caves | Identified exit to Warlord 5860 | -4/Upper Caves | Entered Warlord 5900 | -4/Warlord | Opened side exit 5945 | -4/Warlord | Visited the Vortex Lab 5965 | -4/Warlord | Warlord's base attacked by MAIN.C 5978 | -4/Warlord | Met Warlord 6315 | -4/Warlord | Warlord forces counterattacked 6640 | -4/Warlord | Warlord base infiltrated, sounded retreat 6641 | -4/Warlord | Enhanced Grunt warped into view 6641 | -4/Warlord | Enhanced Grunt warped into view 6641 | -4/Warlord | Enhanced Grunt warped into view 6641 | -4/Warlord | Enhanced Demolisher warped into view 6641 | -4/Warlord | Enhanced Demolisher warped into view 6641 | -4/Warlord | Enhanced Demolisher warped into view 6646 | -4/Warlord | Lost 4 allies 6683 | -4/Warlord | Lost 4 allies 6754 | -4/Warlord | Spotted Executioner 6784 | -4/Warlord | Lost 12 allies 6800 | -4/Warlord | Spotted Executioner 6824 | -4/Warlord | Spotted Striker 6835 | -4/Warlord | Spotted Striker 6836 | -4/Warlord | Found Prototype Ballistic Cannon 6836 | -4/Warlord | Identified Hvy. Autocannon 6846 | -4/Warlord | Spotted B-90 Cyclops 6887 | -4/Warlord | Spotted Striker 6888 | -4/Warlord | Spotted Striker 6908 | -4/Warlord | Discovered new exit (range 17) 6908 | -4/Warlord | Crushed by falling debris 6911 | -4/Warlord | Identified exit to Proximity Caves 6911 | -4/Warlord | Entered Proximity Caves 6997 | -3/Proximity Caves | Spotter reported a threat 7041 | -3/Proximity Caves | Entered Research 7041 | -3/Research | Evolved 2 slots: Utility x2 7042 | -3/Research | Identified exit to Research 7042 | -3/Research | Identified exit to Testing 7046 | -3/Research | Loaded intel: 23 terminal locations 7047 | -3/Research | Loaded intel: 4 garrison access locations 7081 | -3/Research | Identified Dimensional Node Initializer 7221 | -3/Research | Entered another Research area 7221 | -2/Research | Warlord forces began assault on 0b10 7221 | -2/Research | Evolved 2 slots: Utility x2 7316 | -2/Research | Met up with Warlord 7323 | -2/Research | Identified exit to Access 7323 | -2/Research | Identified exit to Quarantine 7331 | -2/Research | Research machine network offline 7406 | -2/Research | Entered Access 7406 | -1/Access | Evolved 2 slots: Utility x2 7470 | -1/Access | Identified Transdimensional Reconstructor 7611 | -1/Access | Build established: Wizard-Scout 7676 | -1/Access | Identified exit to Command 7715 | -1/Access | Fabricated Assault Drone Bay (x1) 8156 | -1/Access | Search patrols dispatched 8177 | -1/Access | Initialized slip node 8178 | -1/Access | Warped through subspace 8209 | -1/Access | Lost 8 parts (3n5u) 8252 | -1/Access | Entered Command 8257 | -1/Command | Targeted by mysterious "MATRIX" hacker 8267 | -1/Command | Identified exit to Surface 8580 | -1/Command | Disengaged cave seal 8581 | -1/Command | Welcomed Warlord to Command 8761 | -1/Command | Lost 3 parts (1p1n1w) 8896 | -1/Command | Spotted M Guard 8896 | -1/Command | Spotted M Guard 8901 | -1/Command | Warlord commented on Warlord statues 8909 | -1/Command | Spotted Combat Programmer 8913 | -1/Command | Spotted Combat Programmer 8935 | -1/Command | Core integrity fell below 50% 8944 | -1/Command | Lost 4 allies 8965 | -1/Command | Lost 7 parts (1p3n2u1w) 8991 | -1/Command | Combat Programmer assimilated allied YE-NAQ(s) 9100 | -1/Command | All MAIN.C guards destroyed 9104 | -1/Command | Found Prototype Device 9104 | -1/Command | Identified Thermal Barrier 9217 | -1/Command | Met MAIN.C 9222 | -1/Command | Warlord shut down involuntarily 9281 | -1/Command | Lost 5 parts (3n2u) 9290 | -1/Command | Found Prototype Processor 9290 | -1/Command | Identified Exp. Armor Integrity Analyzer 9510 | -1/Command | Lost 5 parts (2n2u1w) 9527 | -1/Command | Destroyed 7 combat bots 9612 | -1/Command | Core integrity fell below 20% 9614 | -1/Command | Build established: Hacker-Mutant 9614 | -1/Command | 0b10 Conduit disabled 9633 | -1/Command | Destroyed by P-80 Master with Gamma Rifle Last Messages --------------- 09561_ K-01 Serf collects debris. 09594_ ALERT: Potential suspicious activity detected, Programmers report to Command Zone 9K. 09601_ Acquired 1 matter. 09604_ Door malfunctions. 09607_ Adv. Corruption Screen intercepted 1% system corruption. 09607_ Nuclear Pulse Thruster destroyed. 09611_ Linear Accelerator destroyed. 09614_ 0b10 Conduit disabled. 09618_ Mic. Antimatter Reactor destroyed. 09618_ Adv. Corruption Screen intercepted 3% system corruption. 09630_ Adv. Corruption Screen intercepted 1% system corruption. 09630_ Adv. Heavy Treads destroyed. 09633_ Adv. Corruption Screen intercepted 1% system corruption. 09633_ Adv. Corruption Screen expended. Map ----- +----------------------------------------------------+ | ?????????????????????????????????????????????????? | | ?????????????????????????????????????????????????? | | ?????????????????????????????????????????????????? | | ?????????????????????????????????????????????????? | | ?????????????????????????????????????????????????? | | ?????????????????????????????????????????????????? | | ?????????????????????????????????????????????????? | | ?????????????????????????????????????????????????? | | ?????????????????????????????????????????????????? | | ?????????????????????????????????????????????????? | | ?????????????????????????????????????????????????? | | ?????????????????????????????????????????????????? | | ?????????????????????????????????????????????????? | | ?????????????????????????????????????????????????? | | ????????????????##################???????????????? | | ????????????????""" """" #???????????????? | | ???????????????? "" #???????????????? | | ????????????????" "" ################# | | ????????????????""""""" p | | ????????????????" """ p | | ????????????????"""""" p | | ???????????#"" """""" ################# | | ???????????# " """""" #???????????????? | | ???????????# " ""MMM #???????????????? | | ???????????# " " MMM "#???????????????? | | ????????????""""""""" MMM@" """"#???????????????? | | ???????????#"" " """""""#???????????????? | | ???????????# """""""""""#???????????????? | | ???????????# " " " " #???????????????? | | ???????????# " " " " #???????????????? | | ???????????" " " " """" " #???????????????? | | ???????????" """ " " """" #???????????????? | | ???????????" ? " " " #???????????????? | | ???????????# "??""""""" " #???????????????? | | ???????????# ????"" " """"""""#???????????????? | | ????????????????????? "? " " #???????????????? | | ????????????????????????####?????????????????????? | | ?????????????????????????????????????????????????? | | ?????????????????????????????????????????????????? | | ?????????????????????????????????????????????????? | | ?????????????????????????????????????????????????? | | ?????????????????????????????????????????????????? | | ?????????????????????????????????????????????????? | | ?????????????????????????????????????????????????? | | ?????????????????????????????????????????????????? | | ?????????????????????????????????????????????????? | | ?????????????????????????????????????????????????? | | ?????????????????????????????????????????????????? | | ?????????????????????????????????????????????????? | | ?????????????????????????????????????????????????? | +----------------------------------------------------+ Best States ------------- Heat Dissipation 72 Energy Generation 25 Energy Capacity 760 Matter Stores 300 Matter Capacity 300 Sight Range 22 Robot Scan Range 16 Terrain Scan Range 20 Terrain Scan Density 410 ECM Strength 2 Corruption Containment 12 Corruption Block 20 Evasion (%) 66 Melee Accuracy 30 Target Analysis 12 Armor Integrity Analysis 50 Recoil Reduction 2 Offensive Hacking 58 Defensive Hacking 60 Item Schematics ----------------- Cmb. Airjet | -8/Materials | Scanalyzed Imp. Terrain Scan Processor | -8/Materials | Hacked Trap Scanner | -8/Materials | Scanalyzed System Shield | -8/Materials | Scanalyzed Flight Unit | -8/Materials | Scanalyzed Mni. Grenade Launcher | -8/Materials | Scanalyzed Scythe | -8/Materials | Scanalyzed Assault Drone Bay | -5/Zhirov | Free Exp. Heat Sink | -5/Zhirov | Free Exp. Optical Array | -5/Zhirov | Free Imp. Arc Thrower | -5/Zhirov | Free Q-thruster | -1/Access | Scanalyzed Robot Schematics ------------------ None Fabricated ------------ M-36 Artificer | x1 | -4/Factory | Preloaded Assault Drone Bay | x1 | -1/Access Repaired ---------- Nothing Studied --------- Cesium-ion Thruster | -8/Materials | Hacked Flight Unit | -8/Materials | Hacked Scythe | -8/Materials | Hacked Mni. Grenade Launcher | -8/Materials | Hacked Xenon Bombardment Thruster | -6/Factory | Hacked Spear | -6/Factory | Hacked Mic. Fission Core | -1/Access | Hacked Q-thruster | -1/Access | Hacked Alien Tech Used ----------------- Integrated Dissipator Dimensional Node Initializer Transdimensional Reconstructor Achievements -------------- Corridor Of Doom Exposed Off Switch Challenges ------------ None Game ------ Seed BiomechanicalNetworkBeacon Manual? 0 Play Time 03:37:33 Cumulative 179.9 hours Start 2026.07.24 @ 11:24:24 End 2026.07.24 @ 15:13:03 Sessions 1 Manual Loads 0 Difficulty Rogue Special Mode None Game No. 100 Rogue 100 Adventurer 0 Explorer 0 Win Type - Total 4 Types 4/0/0/0/0/0/0/0/0/0 Lore% 71 Gallery% 62 Achievement% 54 Wizard Run 0 Options --------- Layout 1 ASCII 0 Keyboard 0 Movement Numpad Keybinds 0 Fullscreen 1 Font 24/Smallcaps Map View 50x35 Zoom Use 0% Tactical HUD 1 Map Filters NONE Filters NONE Steam 1 RUN: 45ebe458-743e-4149-98c4-b64790821dea